fUSD/lending_fUSD_20241104
["ID","MTS","AMOUNT","RATE_DAILY","PERIOD"]
[341270497,1730735530013,-512.34,0.00040821,2]
[341270498,1730735530024,-690.94,0.00040821,2]
[341270499,1730735530033,-1122.64,0.00040821,2]
[341270500,1730735530043,-956.46,0.00040821,2]
[341270501,1730735530054,-1420.89,0.00040821,2]
[341270502,1730735530064,-705.19,0.00040821,2]
[341270503,1730735530074,-767.22,0.00040821,2]
[341270504,1730735530083,-869.5,0.00040821,2]
[341270505,1730735530094,-712.63,0.00040821,2]
[341270506,1730735530105,-937.08,0.00040821,2]
[341270507,1730735530116,-764.15,0.00040821,2]
[341270508,1730735530125,-500.0,0.00040821,2]
[341270509,1730735530134,-1294.05,0.00040821,2]
[341270510,1730735530144,-524.31,0.00040821,2]
[341270511,1730735530154,-510.62,0.00040821,2]
[341270512,1730735530164,-575.99,0.00040821,2]
[341270513,1730735530174,-1118.2,0.00040821,2]
[341270514,1730735530184,-711.3,0.00040821,2]
[341270515,1730735530193,-150.2617535,0.00040821,2]
[341270516,1730735530202,-1519.0,0.00040821,2]
[341270517,1730735530212,-1126.44,0.00040821,2]
[341270518,1730735530222,-544.05,0.00040821,2]
[341270519,1730735530231,-326.25354284,0.00040821,2]
[341270520,1730735530241,-1288.14,0.00040821,2]
[341270521,1730735530251,-543.83,0.00040821,2]
[341270522,1730735530265,-636.36,0.00040821,2]
[341270523,1730735530274,-1218.15,0.00040821,2]
[341270524,1730735530284,-1259.81,0.00040821,2]
[341270525,1730735530294,-1651.88,0.00040821,2]
[341270526,1730735530304,-319.99,0.00040821,2]
[341270527,1730735530314,-1360.92,0.00040821,2]
[341270528,1730735530323,-912.89,0.00040821,2]
[341270529,1730735530333,-500.0,0.00040821,2]
[341270530,1730735530343,-719.39,0.00040821,2]
[341270531,1730735530353,-704.43,0.00040821,2]
[341270532,1730735530363,-669.63,0.00040821,2]
[341270533,1730735530372,-500.0,0.00040821,2]
[341270534,1730735530382,-529.69,0.00040821,2]
[341270535,1730735530393,-1802.68,0.00040821,2]
[341270536,1730735530404,-500.0,0.00040821,2]
[341270537,1730735530419,-154.2623953,0.00040821,2]
[341270538,1730735530429,-687.5,0.00040821,2]
[341270539,1730735530438,-1321.04,0.00040821,2]
[341270540,1730735530448,-909.72,0.00040821,2]
[341270541,1730735530459,-549.42,0.00040821,2]
[341270542,1730735530468,-879.57,0.00040821,2]
[341270543,1730735530480,-571.76,0.00040821,2]
[341270544,1730735530492,-534.69,0.00040821,2]
[341270545,1730735530501,-500.0,0.00040821,2]
[341270546,1730735530514,-939.96,0.00040821,2]
[341270547,1730735530524,-441.94538133,0.00040821,2]
[341270548,1730735530873,-500.0,0.00036473,5]
[341270549,1730735530887,-500.0,0.00036986,2]
[341270550,1730735530903,-371.00678063,0.00037842,5]
[341270551,1730735530918,-1916.99,0.00039452,2]
[341270552,1730735530931,-58.05461867,0.00040821,2]
[341270553,1730735530943,-980.66,0.00040821,2]
[341270554,1730735530953,-500.0,0.00040821,2]
[341270555,1730735530963,-500.0,0.00040821,2]
[341270556,1730735530972,-511.22,0.00040821,2]
[341270557,1730735530982,-546.11,0.00040821,2]
[341270558,1730735530992,-505.5,0.00040821,2]
[341270559,1730735531003,-187.1586007,0.00040821,2]
[341270560,1730735531020,-255.746573,0.00036164,7]
[341270561,1730735531030,-797.3013993,0.00040821,2]
[341270562,1730735531039,-614.73,0.00040821,2]
[341270563,1730735531049,-500.0,0.00040821,2]
[341270564,1730735531059,-988.32,0.00040821,2]
[341270565,1730735531070,-602.48,0.00040821,2]
[341270566,1730735531080,-631.52,0.00040821,2]
[341270567,1730735531091,-553.74,0.00040821,2]
[341270568,1730735531102,-988.27,0.00040821,2]
[341270569,1730735531113,-769.98,0.00040821,2]
[341270570,1730735531122,-1956.97,0.00040821,2]
[341270571,1730735531132,-566.39,0.00040821,2]
[341270572,1730735531143,-1694.4,0.00040821,2]
[341270573,1730735531152,-515.3,0.00040821,2]
[341270574,1730735531162,-879.85,0.00040821,2]
[341270575,1730735531171,-652.97,0.00040821,2]
[341270576,1730735531181,-617.53164952,0.00040821,2]
[341270623,1730736631450,-163.81,0.00015342,2]
[341270624,1730736631460,-158.69,0.00015342,2]
[341270625,1730736631469,-150.0,0.00016095,2]
[341270626,1730736631479,-83.56011707,0.00021,2]
[341270627,1730736631606,-166.43988293,0.00021,2]
[341270628,1730736631616,-300.0,0.00023,2]
[341270629,1730736631625,-350.0,0.00025,2]
[341270630,1730736631635,-400.0,0.00027,2]
[341270631,1730736631644,-7121.16868812,0.000289,2]
[341270632,1730736631655,-4317.80622746,0.000289,2]
[341270633,1730736631665,-6642.082792,0.000289,2]
[341270634,1730736631676,-439.85724549,0.000289,2]
[341270635,1730736631690,-3345.58064132,0.000289,2]
[341270636,1730736631769,-17607.17626451,0.000289,2]
[341270637,1730736631778,-450.0,0.00029,2]
[341270638,1730736631787,-500.0,0.000307,30]
[341270639,1730736631796,-500.0,0.00031,2]
[341270640,1730736631806,-2339.0,0.000314,2]
[341270641,1730736631815,-712.63,0.0003145,2]
[341270642,1730736631824,-500.0,0.000321,30]
[341270643,1730736631833,-500.0,0.000321,30]
[341270644,1730736631845,-500.0,0.000321,30]
[341270645,1730736631855,-289.39,0.00032804,2]
[341270646,1730736631865,-150.0,0.00032828,7]
[341270647,1730736631874,-590.57,0.00032843,2]
[341270649,1730736631885,-500.0,0.00032876,2]
[341270651,1730736631894,-1000.0,0.00032886,2]
[341270653,1730736631903,-11138.96,0.00032892,2]
[341270655,1730736631915,-550.0,0.00033,2]
[341270657,1730736631924,-153.22,0.00033009,120]
[341270659,1730736631933,-463.531,0.00033162,2]
[341270661,1730736631942,-1250.0,0.00033162,2]
[341270663,1730736631951,-558.0,0.00033162,2]
[341270665,1730736631960,-1985.0,0.00033162,2]
[341270667,1730736631969,-2904.0,0.00033162,2]
[341270669,1730736631978,-812.0,0.00033162,2]
[341270671,1730736631987,-3375.0,0.00033162,2]
[341270673,1730736631997,-5911.0,0.00033162,2]
[341270676,1730736632181,-155.843,0.00033162,2]
[341270677,1730736632191,-13590.0,0.00033162,2]
[341270678,1730736632202,-1155.0,0.00033162,2]
[341270679,1730736632211,-363.31,0.00033403,2]
[341270680,1730736632221,-150.99,0.00033461,2]
[341270681,1730736632230,-712.63,0.00033714,2]
[341270682,1730736632240,-166.91,0.00033772,2]
[341270683,1730736632249,-161.63,0.00033876,2]
[341270684,1730736632258,-161.63,0.00033894,2]
[341270685,1730736632267,-161.63,0.00033912,2]
[341270686,1730736632276,-161.63,0.00033929,2]
[341270687,1730736632286,-363.31,0.0003394,2]
[341270688,1730736632295,-161.63,0.00033947,2]
[341270689,1730736632304,-161.63,0.00033965,2]
[341270690,1730736632314,-161.63,0.00033983,2]
[341270691,1730736632323,-161.63,0.00034001,2]
[341270692,1730736632332,-161.63,0.00034019,2]
[341270693,1730736632342,-161.63,0.00034036,2]
[341270694,1730736632351,-161.63,0.00034054,2]
[341270695,1730736632360,-161.63,0.00034072,2]
[341270696,1730736632370,-161.63,0.0003409,2]
[341270697,1730736632378,-161.63,0.00034108,2]
[341270698,1730736632387,-161.63,0.00034126,2]
[341270699,1730736632397,-161.63,0.00034143,2]
[341270700,1730736632406,-161.63,0.00034161,2]
[341270701,1730736632415,-161.63,0.00034179,2]
[341270702,1730736632425,-208.32,0.0003419,10]
[341270703,1730736632434,-173.6,0.0003419,10]
[341270704,1730736632443,-161.63,0.00034197,2]
[341270705,1730736632456,-20376.0,0.000342,2]
[341270706,1730736632465,-161.63,0.00034215,2]
[341270707,1730736632474,-166.31,0.00034228,2]
[341270708,1730736632483,-739.89,0.0003431,2]
[341270709,1730736632492,-289.39,0.00034444,2]
[341270710,1730736632501,-363.31,0.00034476,2]
[341270711,1730736632511,-23079.0,0.00034558,2]
[341270712,1730736632519,-381.239436,0.000346,30]
[341270713,1730736632529,-151.53,0.00034628,2]
[341270714,1730736632537,-363.31,0.00035013,2]
[341270715,1730736632547,-178.77725541,0.00035416,15]
[341270716,1730736632557,-174.02913255,0.00035416,2]
[341270717,1730736632567,-2375.674,0.00035516,2]
[341270718,1730736632576,-245000.0,0.00035516,2]
[341270719,1730736632586,-361.74271197,0.00035516,2]
[341270720,1730736632595,-363.31,0.0003555,2]
[341270721,1730736632604,-500.0,0.00035616,2]
[341270722,1730736632613,-494.73450867,0.00035616,2]
[341270723,1730736632623,-507.58606773,0.00035616,2]
[341270724,1730736632632,-563.76350072,0.00035616,2]
[341270725,1730736632641,-500.0,0.00035616,2]
[341270726,1730736632650,-530.26272854,0.00035616,2]
[341270727,1730736632660,-373.56759011,0.00035616,2]
[341270728,1730736632670,-527.88629004,0.00035616,2]
[341270729,1730736632679,-534.69273626,0.00035616,2]
[341270730,1730736632688,-191.86500627,0.00035616,2]
[341270731,1730736632701,-540.62930202,0.00035616,2]
[341270732,1730736632711,-179.03886881,0.00035616,2]
[341270733,1730736632722,-510.13365584,0.00035616,2]
[341270734,1730736632731,-528.44351568,0.00035616,2]
[341270735,1730736632740,-314.50600113,0.00035616,2]
[341270736,1730736632750,-181.03758316,0.00035616,2]
[341270737,1730736632759,-525.80805077,0.00035616,2]
[341270738,1730736632768,-512.22446747,0.00035616,2]
[341270739,1730736632777,-512.85189259,0.00035616,2]
[341270740,1730736632786,-633.36908999,0.00035616,2]
[341270741,1730736632795,-196.07251342,0.00035616,2]
[341270742,1730736632805,-507.86803958,0.00035616,2]
[341270743,1730736632814,-558.50976424,0.00035616,2]
[341270744,1730736632823,-504.2359542,0.00035616,2]
[341270745,1730736632833,-509.95526255,0.00035616,2]
[341270746,1730736632846,-500.0,0.00035616,2]
[341270747,1730736632855,-500.0,0.00035616,2]
[341270748,1730736632866,-500.0,0.00035616,2]
[341270749,1730736632876,-402.90463608,0.00035616,2]
[341270750,1730736632886,-500.0,0.00035616,2]
[341270751,1730736632895,-500.0,0.00035616,2]
[341270752,1730736632904,-302.46268621,0.00035616,2]
[341270753,1730736632915,-500.0,0.00035616,2]
[341270754,1730736632924,-1000.0,0.00035616,2]
[341270755,1730736632934,-500.0,0.00035616,2]
[341270756,1730736632943,-500.0,0.00035616,2]
[341270757,1730736632955,-500.0,0.00035616,2]
[341270758,1730736632964,-500.0,0.00035616,2]
[341270759,1730736632973,-500.0,0.00035616,2]
[341270760,1730736632982,-552.20707888,0.00035616,2]
[341270761,1730736632991,-500.0,0.00035616,2]
[341270762,1730736633000,-500.0,0.00035616,2]
[341270763,1730736633009,-500.0,0.00035616,2]
[341270764,1730736633019,-500.0,0.00035616,2]
[341270765,1730736633028,-508.73237431,0.00035616,2]
[341270766,1730736633037,-535.01426607,0.00035616,2]
[341270767,1730736633046,-515.62481878,0.00035616,2]
[341270768,1730736633055,-500.0,0.00035616,2]
[341270769,1730736633064,-500.0,0.00035616,2]
[341270770,1730736633073,-500.0,0.00035616,2]
[341270771,1730736633083,-527.16486955,0.00035616,2]
[341270772,1730736633092,-500.0,0.00035616,2]
[341270773,1730736633102,-500.0,0.00035616,2]
[341270774,1730736633111,-500.0,0.00035616,2]
[341270775,1730736633120,-500.0,0.00035616,2]
[341270776,1730736633129,-500.0,0.00035616,2]
[341270777,1730736633139,-500.0,0.00035616,2]
[341270778,1730736633148,-500.0,0.00035616,2]
[341270779,1730736633158,-500.0,0.00035616,2]
[341270780,1730736633167,-500.0,0.00035616,2]
[341270781,1730736633176,-500.0,0.00035616,2]
[341270782,1730736633186,-500.0,0.00035616,2]
[341270783,1730736633198,-500.0,0.00035616,2]
[341270784,1730736633207,-500.0,0.00035616,2]
[341270785,1730736633217,-500.0,0.00035616,2]
[341270786,1730736633226,-500.0,0.00035616,2]
[341270787,1730736633236,-500.0,0.00035616,2]
[341270788,1730736633246,-500.0,0.00035616,2]
[341270789,1730736633255,-636.69174441,0.00035616,2]
[341270790,1730736633264,-500.0,0.00035616,2]
[341270791,1730736633274,-500.0,0.00035616,2]
[341270792,1730736633283,-500.0,0.00035616,2]
[341270793,1730736633293,-500.0,0.00035616,2]
[341270794,1730736633302,-500.0,0.00035616,2]
[341270795,1730736633311,-500.0,0.00035616,2]
[341270796,1730736633321,-500.0,0.00035616,2]
[341270797,1730736633330,-500.0,0.00035616,2]
[341270798,1730736633340,-500.0,0.00035616,2]
[341270799,1730736633349,-500.0,0.00035616,2]
[341270800,1730736633358,-500.0,0.00035616,2]
[341270801,1730736633368,-500.0,0.00035616,2]
[341270802,1730736633377,-500.0,0.00035616,2]
[341270803,1730736633387,-500.0,0.00035616,2]
[341270804,1730736633397,-506.54080672,0.00035616,2]
[341270805,1730736633406,-500.0,0.00035616,2]
[341270806,1730736633417,-500.0,0.00035616,2]
[341270807,1730736633427,-500.0,0.00035616,2]
[341270808,1730736633436,-500.0,0.00035616,2]
[341270809,1730736633446,-500.0,0.00035616,2]
[341270810,1730736633455,-500.0,0.00035616,2]
[341270811,1730736633464,-500.0,0.00035616,2]
[341270812,1730736633475,-523.47632373,0.00035616,2]
[341270813,1730736633485,-500.0,0.00035616,2]
[341270814,1730736633495,-500.0,0.00035616,2]
[341270815,1730736633505,-500.0,0.00035616,2]
[341270816,1730736633514,-500.0,0.00035616,2]
[341270817,1730736633524,-500.0,0.00035616,2]
[341270818,1730736633533,-500.0,0.00035616,2]
[341270819,1730736633542,-500.0,0.00035616,2]
[341270820,1730736633552,-500.0,0.00035616,2]
[341270821,1730736633561,-500.0,0.00035616,2]
[341270822,1730736633571,-500.0,0.00035616,2]
[341270823,1730736633580,-585.20837914,0.00035616,2]
[341270824,1730736633590,-500.0,0.00035616,2]
[341270825,1730736633599,-500.0,0.00035616,2]
[341270826,1730736633609,-518.30963726,0.00035616,2]
[341270827,1730736633619,-500.0,0.00035616,2]
[341270828,1730736633630,-500.0,0.00035616,2]
[341270829,1730736633639,-500.0,0.00035616,2]
[341270830,1730736633649,-500.0,0.00035616,2]
[341270831,1730736633659,-500.0,0.00035616,2]
[341270832,1730736633668,-500.0,0.00035616,2]
[341270833,1730736633677,-500.0,0.00035616,2]
[341270834,1730736633686,-500.0,0.00035616,2]
[341270835,1730736633699,-500.0,0.00035616,2]
[341270836,1730736633708,-500.0,0.00035616,2]
[341270837,1730736633717,-500.0,0.00035616,2]
[341270838,1730736633727,-500.0,0.00035616,2]
[341270839,1730736633737,-500.0,0.00035616,2]
[341270840,1730736633746,-500.0,0.00035616,2]
[341270841,1730736633756,-500.0,0.00035616,2]
[341270842,1730736633765,-500.0,0.00035616,2]
[341270843,1730736633775,-500.0,0.00035616,2]
[341270844,1730736633784,-500.0,0.00035616,2]
[341270845,1730736633794,-500.0,0.00035616,2]
[341270846,1730736633803,-500.0,0.00035616,2]
[341270847,1730736633813,-500.0,0.00035616,2]
[341270848,1730736633822,-500.57631122,0.00035616,2]
[341270849,1730736633832,-500.0,0.00035616,2]
[341270850,1730736633845,-500.0,0.00035616,2]
[341270851,1730736633854,-500.0,0.00035616,2]
[341270852,1730736633863,-500.0,0.00035616,2]
[341270853,1730736633873,-500.0,0.00035616,2]
[341270854,1730736633883,-500.0,0.00035616,2]
[341270855,1730736633893,-611.98541948,0.00035616,2]
[341270856,1730736633902,-500.0,0.00035616,2]
[341270857,1730736633912,-500.0,0.00035616,2]
[341270858,1730736633921,-500.0,0.00035616,2]
[341270859,1730736633931,-500.0,0.00035616,2]
[341270860,1730736633940,-500.0,0.00035616,2]
[341270861,1730736633951,-500.0,0.00035616,2]
[341270862,1730736633961,-512.75001794,0.00035616,2]
[341270863,1730736633970,-500.0,0.00035616,2]
[341270864,1730736633979,-500.0,0.00035616,2]
[341270865,1730736633988,-500.0,0.00035616,2]
[341270866,1730736633998,-500.0,0.00035616,2]
[341270867,1730736634008,-500.0,0.00035616,2]
[341270868,1730736634017,-500.0,0.00035616,2]
[341270869,1730736634026,-500.0,0.00035616,2]
[341270870,1730736634036,-526.12945933,0.00035616,2]
[341270871,1730736634045,-500.0,0.00035616,2]
[341270872,1730736634054,-500.0,0.00035616,2]
[341270873,1730736634063,-500.0,0.00035616,2]
[341270874,1730736634072,-500.0,0.00035616,2]
[341270875,1730736634082,-500.0,0.00035616,2]
[341270876,1730736634091,-625.03897735,0.00035616,2]
[341270877,1730736634100,-500.0,0.00035616,2]
[341270878,1730736634109,-500.0,0.00035616,2]
[341270879,1730736634119,-500.0,0.00035616,2]
[341270880,1730736634128,-500.0,0.00035616,2]
[341270881,1730736634137,-550.1761622,0.00035616,2]
[341270882,1730736634147,-795.35,0.00035616,2]
[341270883,1730736634156,-500.0,0.00035616,2]
[341270884,1730736634166,-500.0,0.00035616,2]
[341270885,1730736634175,-514.73012972,0.00035616,2]
[341270886,1730736634184,-500.0,0.00035616,2]
[341270887,1730736634195,-558.18366854,0.00035616,2]
[341270888,1730736634205,-500.0,0.00035616,2]
[341270889,1730736634215,-500.0,0.00035616,2]
[341270890,1730736634224,-500.0,0.00035616,2]
[341270891,1730736634234,-1086.06,0.00035616,2]
[341270892,1730736634243,-500.0,0.00035616,2]
[341270893,1730736634253,-538.86973812,0.00035616,2]
[341270894,1730736634263,-562.33764266,0.00035616,2]
[341270895,1730736634272,-532.28714347,0.00035616,2]
[341270896,1730736634282,-500.0,0.00035616,2]
[341270897,1730736634291,-513.28,0.00035616,2]
[341270898,1730736634301,-500.0,0.00035616,2]
[341270899,1730736634311,-525.35142548,0.00035616,2]
[341270900,1730736634320,-565.89937797,0.00035616,2]
[341270901,1730736634329,-500.0,0.00035616,2]
[341270902,1730736634339,-500.0,0.00035616,2]
[341270903,1730736634349,-500.0,0.00035616,2]
[341270904,1730736634359,-500.0,0.00035616,2]
[341270905,1730736634370,-500.0,0.00035616,2]
[341270906,1730736634380,-500.0,0.00035616,2]
[341270907,1730736634390,-500.0,0.00035616,2]
[341270908,1730736634401,-500.0,0.00035616,2]
[341270909,1730736634410,-500.0,0.00035616,2]
[341270910,1730736634420,-500.0,0.00035616,2]
[341270911,1730736634430,-500.0,0.00035616,2]
[341270912,1730736634440,-512.53702244,0.00035616,2]
[341270913,1730736634452,-500.0,0.00035616,2]
[341270914,1730736634463,-500.0,0.00035616,2]
[341270915,1730736634473,-500.0,0.00035616,2]
[341270916,1730736634483,-500.0,0.00035616,2]
[341270917,1730736634493,-500.0,0.00035616,2]
[341270918,1730736634503,-500.0,0.00035616,2]
[341270919,1730736634513,-500.0,0.00035616,2]
[341270920,1730736634523,-500.0,0.00035616,2]
[341270922,1730736634533,-500.0,0.00035616,2]
[341270923,1730736634543,-588.35435929,0.00035616,2]
[341270924,1730736634552,-525.56547495,0.00035616,2]
[341270925,1730736634562,-500.0,0.00035616,2]
[341270926,1730736634572,-500.0,0.00035616,2]
[341270927,1730736634581,-500.0,0.00035616,2]
[341270928,1730736634591,-20000.0,0.00035616,2]
[341270929,1730736634600,-2000.0,0.00035616,2]
[341270930,1730736634609,-500.0,0.00035616,2]
[341270931,1730736634618,-500.0,0.00035616,2]
[341270932,1730736634628,-500.0,0.00035616,2]
[341270933,1730736634638,-500.0,0.00035616,2]
[341270934,1730736634648,-500.0,0.00035616,2]
[341270935,1730736634658,-500.0,0.00035616,2]
[341270936,1730736634668,-500.0,0.00035616,2]
[341270937,1730736634678,-500.0,0.00035616,2]
[341270938,1730736634688,-500.0,0.00035616,2]
[341270939,1730736634699,-500.0,0.00035616,2]
[341270940,1730736634709,-500.0,0.00035616,2]
[341270941,1730736634719,-500.0,0.00035616,2]
[341270942,1730736634728,-500.0,0.00035616,2]
[341270943,1730736634738,-500.0,0.00035616,2]
[341270944,1730736634747,-526.25,0.00035616,2]
[341270945,1730736634757,-500.0,0.00035616,2]
[341270946,1730736634766,-500.0,0.00035616,2]
[341270947,1730736634776,-500.0,0.00035616,2]
[341270948,1730736634786,-395.48862304,0.00035616,2]
[341270949,1730736634795,-500.0,0.00035616,2]
[341270950,1730736634805,-500.0,0.00035616,2]
[341270951,1730736634815,-500.0,0.00035616,2]
[341270952,1730736634824,-500.0,0.00035616,2]
[341270953,1730736634834,-500.0,0.00035616,2]
[341270954,1730736634847,-500.0,0.00035616,2]
[341270955,1730736634856,-500.0,0.00035616,2]
[341270956,1730736634866,-500.0,0.00035616,2]
[341270957,1730736634875,-500.0,0.00035616,2]
[341270958,1730736634886,-500.0,0.00035616,2]
[341270959,1730736634895,-500.0,0.00035616,2]
[341270960,1730736634905,-500.0,0.00035616,2]
[341270961,1730736634916,-500.0,0.00035616,2]
[341270962,1730736634925,-500.0,0.00035616,2]
[341270963,1730736634935,-500.0,0.00035616,2]
[341270964,1730736634944,-500.0,0.00035616,2]
[341270965,1730736634954,-500.0,0.00035616,2]
[341270966,1730736634964,-500.0,0.00035616,2]
[341270967,1730736634973,-500.0,0.00035616,2]
[341270968,1730736634982,-500.0,0.00035616,2]
[341270969,1730736634992,-500.0,0.00035616,2]
[341270970,1730736635002,-500.0,0.00035616,2]
[341270971,1730736635011,-500.0,0.00035616,2]
[341270972,1730736635020,-500.0,0.00035616,2]
[341270973,1730736635030,-500.0,0.00035616,2]
[341270974,1730736635039,-500.0,0.00035616,2]
[341270975,1730736635049,-520.77833094,0.00035616,2]
[341270976,1730736635059,-386.3892196,0.00035616,2]
[341270977,1730736635069,-500.0,0.00035616,2]
[341270978,1730736635078,-500.0,0.00035616,2]
[341270979,1730736635088,-500.0,0.00035616,2]
[341270980,1730736635099,-500.0,0.00035616,2]
[341270981,1730736635108,-500.0,0.00035616,2]
[341270982,1730736635118,-500.0,0.00035616,2]
[341270983,1730736635127,-500.0,0.00035616,2]
[341270984,1730736635137,-500.0,0.00035616,2]
[341270985,1730736635147,-500.0,0.00035616,2]
[341270986,1730736635156,-506.11746935,0.00035616,2]
[341270987,1730736635166,-500.0,0.00035616,2]
[341270988,1730736635175,-500.0,0.00035616,2]
[341270989,1730736635185,-500.0,0.00035616,2]
[341270990,1730736635194,-548.40545724,0.00035616,2]
[341270991,1730736635205,-500.0,0.00035616,2]
[341270992,1730736635214,-500.0,0.00035616,2]
[341270993,1730736635224,-500.0,0.00035616,2]
[341270994,1730736635234,-500.0,0.00035616,2]
[341270995,1730736635242,-500.0,0.00035616,2]
[341270996,1730736635252,-300.0,0.00035616,2]
[341270997,1730736635262,-501.46571167,0.00035616,2]
[341270998,1730736635271,-500.0,0.00035616,2]
[341270999,1730736635281,-500.0,0.00035616,2]
[341271000,1730736635290,-500.0,0.00035616,2]
[341271001,1730736635299,-500.0,0.00035616,2]
[341271002,1730736635308,-500.0,0.00035616,2]
[341271003,1730736635317,-500.0,0.00035616,2]
[341271004,1730736635326,-500.0,0.00035616,2]
[341271005,1730736635337,-500.0,0.00035616,2]
[341271006,1730736635347,-509.65389085,0.00035616,2]
[341271007,1730736635356,-500.0,0.00035616,2]
[341271008,1730736635367,-500.0,0.00035616,2]
[341271009,1730736635376,-2987.61,0.00035616,2]
[341271010,1730736635386,-500.0,0.00035616,2]
[341271011,1730736635396,-169.21263859,0.00035616,2]
[341271012,1730736635405,-500.0,0.00035616,2]
[341271013,1730736635414,-500.0,0.00035616,2]
[341271014,1730736635423,-500.0,0.00035616,2]
[341271015,1730736635433,-172.28784603,0.00035616,2]
[341271016,1730736635442,-519.67059724,0.00035616,2]
[341271017,1730736635453,-500.0,0.00035616,2]
[341271018,1730736635462,-500.0,0.00035616,2]
[341271019,1730736635472,-500.0,0.00035616,2]
[341271020,1730736635481,-500.0,0.00035616,2]
[341271021,1730736635491,-500.0,0.00035616,2]
[341271022,1730736635500,-500.0,0.00035616,2]
[341271023,1730736635509,-500.0,0.00035616,2]
[341271024,1730736635518,-505.19929736,0.00035616,2]
[341271025,1730736635527,-503.90362677,0.00035616,2]
[341271026,1730736635536,-527.35428358,0.00035616,2]
[341271027,1730736635546,-500.0,0.00035616,2]
[341271028,1730736635555,-513.74577552,0.00035616,2]
[341271029,1730736635564,-500.0,0.00035616,2]
[341271030,1730736635573,-532.34910687,0.00035616,2]
[341271031,1730736635583,-173.34027512,0.00035616,2]
[341271032,1730736635592,-500.0,0.00035616,2]
[341271033,1730736635602,-500.0,0.00035616,2]
[341271034,1730736635611,-500.0,0.00035616,2]
[341271035,1730736635620,-535.45577644,0.00035616,2]
[341271036,1730736635630,-675.77,0.00035616,2]
[341271037,1730736635639,-455.16145364,0.00035616,2]
[341271038,1730736635649,-500.0,0.00035616,2]
[341271039,1730736635658,-532.35957779,0.00035616,2]
[341271040,1730736635667,-500.0,0.00035616,2]
[341271041,1730736635676,-500.0,0.00035616,2]
[341271042,1730736635685,-447.62457244,0.00035616,2]
[341271043,1730736635694,-500.0,0.00035616,2]
[341271044,1730736635704,-500.0,0.00035616,2]
[341271045,1730736635714,-500.0,0.00035616,2]
[341271046,1730736635723,-500.0,0.00035616,2]
[341271047,1730736635733,-500.0,0.00035616,2]
[341271048,1730736635742,-500.0,0.00035616,2]
[341271049,1730736635751,-500.0,0.00035616,2]
[341271050,1730736635760,-515.26,0.00035616,2]
[341271051,1730736635770,-500.0,0.00035616,2]
[341271052,1730736635779,-500.0,0.00035616,2]
[341271053,1730736635789,-500.0,0.00035616,2]
[341271054,1730736635798,-500.0,0.00035616,2]
[341271055,1730736635808,-500.0,0.00035616,2]
[341271056,1730736635817,-500.0,0.00035616,2]
[341271057,1730736635827,-500.0,0.00035616,2]
[341271058,1730736635837,-500.0,0.00035616,2]